Workbook

Sheet 附表2
A1: 附件2
A2: 2024年蓬江区政府性基金预算调整情况表
J3: 金额单位：万元
A4: 收 入 | F4: 支 出
A5: 项目 | B5: 年初预算数 | C5: 调增额 | D5: 调减额 | E5: 调整预算数 | F5: 项目 | G5: 年初预算数 | H5: 调增额 | I5: 调减额 | J5: 调整预算数
A6: 一、基金预算收入 | B6: 402,655 | E6: =B6+C6-D6 -> 402,655 | F6: 一、基金预算支出 | G6: 267,943 | H6: 80,000 | J6: =G6+H6-I6 -> 347,943
A7: 农业土地开发资金收入 | E7: 0 | F7: 国家电影事业发展专项资金安排的支出 | G7: 11 | J7: =G7+H7-I7 -> 11
A8: 国有土地使用权出让收入 | B8: 375,415 | E8: 375,415 | F8: 国有土地使用权出让收入安排的支出 | G8: 199,559 | J8: 199,559
A9: 彩票公益金收入 | B9: 2,218 | E9: 2,218 | F9: 城市基础设施配套费安排的支出 | G9: 4,706 | J9: 4,706
A10: 城市基础设施配套费收入 | B10: 10,022 | E10: 10,022 | F10: 污水处理费收入安排的支出 | G10: 6,554 | J10: 6,554
A11: 污水处理费收入 | B11: 15,000 | E11: 15,000 | F11: 其他政府性基金及对应专项债务收入安排的支出 | G11: 8,015 | H11: 80,000 | J11: 88,015
A12: 其他政府性基金收入 | F12: 彩票发行销售机构业务费安排的支出 | G12: 81 | J12: 81
F13: 彩票公益金安排的支出 | G13: 2,549 | J13: 2,549
F14: 地方政府专项债务还本支出 | G14: 46,464 | J14: 46,464
F15: 地方政府专项债务发行费用支出 | G15: 4 | J15: 4
A16: 二、上年结转收入 | B16: 8,133 | E16: =B16+C16-D16 -> 8,133 | F16: 二、转移性支出 | G16: =G17+G18 -> 0 | H16: =H17+H18 -> 0 | I16: =I17+I18 -> 0 | J16: =J17+J18 -> 0
A17: 三、转移性收入 | B17: =B18+B19 -> 8,655 | C17: =C18+C19 -> 0 | D17: =D18+D19 -> 0 | E17: =E18+E19 -> 8,655 | F17: （一）上解上级支出 | J17: =G17+H17-I17 -> 0
A18: （一）上级补助收入 | B18: 8,655 | E18: 8,655 | F18: （二）补助下级支出 | J18: 0
A19: （二）下级上解收入 | E19: 0 | F19: 三、调出资金 | G19: 148,000 | J19: 148,000
A20: 四、债券转贷收入 | B20: =B21+B22 -> 31,373 | C20: =C21+C22 -> 82,300 | D20: =D21+D22 -> 0 | E20: =E21+E22 -> 113,673 | F20: 四、结转下年支出 | G20: 0 | H20: 2,300 | J20: =G20+H20-I20 -> 2,300
A21: （一）再融资债券收入 | B21: 31,373 | C21: 2,300 | E21: =B21+C21-D21 -> 33,673 | F21: 五、债券转贷支出 | G21: =G22+G23 -> 0 | H21: =H22+H23 -> 0 | I21: =I22+I23 -> 0 | J21: =J22+J23 -> 0
A22: （二）新增专项债券收入 | C22: 80,000 | E22: =B22+C22-D22 -> 80,000 | F22: （一）再融资债券支出 | J22: 0
A23: 五、调入资金 | E23: =B23+C23-D23 -> 0 | F23: （二）新增专项债券支出 | J23: 0
F24: 六、债务还本支出 | G24: 34,873 | J24: 34,873
A25: 收入总计 | B25: =B6+B16+B17+B20+B23 -> 450,816 | C25: =C6+C16+C17+C20+C23 -> 82,300 | D25: =D6+D16+D17+D20+D23 -> 0 | E25: =E6+E16+E17+E20+E23 -> 533,116 | F25: 支出总计 | G25: =G6+G16+G19+G20+G21+G24 -> 450,816 | H25: =H6+H16+H19+H20+H21+H24 -> 82,300 | I25: =I6+I16+I19+I20+I21+I24 -> 0 | J25: =J6+J16+J19+J20+J21+J24 -> 533,116
